fUSD/lending_fUSD_20251215
["ID","MTS","AMOUNT","RATE_DAILY","PERIOD"]
[398549170,1765823498989,-403.281376,0.00018,2]
[398549171,1765823498999,-151.0,0.00018,2]
[398549172,1765823499010,-797.629675,0.00018,2]
[398549173,1765823499021,-250.490098,0.00018,2]
[398549174,1765823499031,-403.281376,0.00018,2]
[398549175,1765823499042,-797.629675,0.00018,2]
[398549176,1765823499055,-250.490098,0.00018,2]
[398549177,1765823499065,-403.281376,0.00018,2]
[398549178,1765823499075,-250.490098,0.00018,2]
[398549179,1765823499085,-403.281376,0.00018,2]
[398549180,1765823499095,-438.750876,0.00018,2]
[398549181,1765823499105,-151.0,0.00018,2]
[398549182,1765823499115,-204.212361,0.00018,2]
[398549183,1765823499125,-438.750876,0.00018,2]
[398549184,1765823499135,-440.006132,0.00018,2]
[398549185,1765823499147,-438.750876,0.00018,2]
[398549186,1765823499156,-440.006132,0.00018,2]
[398549187,1765823499167,-438.750876,0.00018,2]
[398549188,1765823499177,-440.006132,0.00018,2]
[398549189,1765823499187,-440.006132,0.00018,2]
[398549190,1765823499196,-42817.75973516,0.00018,2]
[398549191,1765823499211,-1012.876581,0.00018,2]
[398549192,1765823499220,-587.459382,0.00018,2]
[398549193,1765823499230,-1012.876581,0.00018,2]
[398549194,1765823499240,-151.0,0.00018,2]
[398549195,1765823499251,-587.459382,0.00018,2]
[398549196,1765823499260,-1012.876581,0.00018,2]
[398549197,1765823499270,-587.459382,0.00018,2]
[398549198,1765823499281,-829.171688,0.00018,2]
[398549199,1765823499291,-587.459382,0.00018,2]
[398549200,1765823499301,-829.171688,0.00018,2]
[398549201,1765823499311,-307.645119,0.00018,2]
[398549202,1765823499321,-829.171688,0.00018,2]
[398549203,1765823499334,-151.0,0.00018,2]
[398549204,1765823499343,-307.645119,0.00018,2]
[398549205,1765823499353,-151.0,0.00018,2]
[398549206,1765823499362,-829.171688,0.00018,2]
[398549207,1765823499372,-307.645119,0.00018,2]
[398549208,1765823499383,-307.645119,0.00018,2]
[398549209,1765823499393,-775.203546,0.00018,2]
[398549210,1765823499402,-775.203546,0.00018,2]
[398549211,1765823499411,-775.203546,0.00018,2]
[398549212,1765823499421,-302.763258,0.00018,2]
[398549213,1765823499430,-775.203546,0.00018,2]
[398549214,1765823499439,-302.763258,0.00018,2]
[398549215,1765823499448,-302.763258,0.00018,2]
[398549216,1765823499458,-302.763258,0.00018,2]
[398549217,1765823499467,-549.529895,0.00018,2]
[398549218,1765823499477,-152.234975,0.00018,2]
[398549219,1765823499487,-998.141374,0.00018,2]
[398549220,1765823499496,-445.598813,0.00018,2]
[398549221,1765823499505,-549.529895,0.00018,2]
[398549222,1765823499515,-998.141374,0.00018,2]
[398549223,1765823499524,-445.598813,0.00018,2]
[398549224,1765823499533,-1984.407492,0.00018,2]
[398549225,1765823499543,-549.529895,0.00018,2]
[398549226,1765823499552,-998.141374,0.00018,2]
[398549227,1765823499562,-549.529895,0.00018,2]
[398549228,1765823499571,-445.598813,0.00018,2]
[398549229,1765823499581,-1984.407492,0.00018,2]
[398549230,1765823499591,-168.634152,0.00018,2]
[398549231,1765823499600,-998.141374,0.00018,2]
[398549232,1765823499610,-1984.407492,0.00018,2]
[398549233,1765823499619,-445.598813,0.00018,2]
[398549234,1765823499629,-168.634152,0.00018,2]
[398549235,1765823499640,-1984.407492,0.00018,2]
[398549236,1765823499650,-168.634152,0.00018,2]
[398549237,1765823499659,-241.904183,0.00018,2]
[398549238,1765823499669,-168.634152,0.00018,2]
[398549239,1765823499679,-583.444326,0.00018,2]
[398549240,1765823499690,-203.821001,0.00018,2]
[398549241,1765823499700,-583.444326,0.00018,2]
[398549242,1765823499710,-203.821001,0.00018,2]
[398549243,1765823499725,-583.444326,0.00018,2]
[398549244,1765823499735,-203.821001,0.00018,2]
[398549245,1765823499744,-583.444326,0.00018,2]
[398549246,1765823499754,-203.821001,0.00018,2]
[398549247,1765823499771,-151.0,0.00018,2]
[398549248,1765823499783,-151.0,0.00018,2]
[398549249,1765823499794,-151.0,0.00018,2]
[398549250,1765823499804,-334.256187,0.00018,2]
[398549251,1765823499813,-441.703127,0.00018,2]
[398549252,1765823499824,-151.0,0.00018,2]
[398549253,1765823499833,-334.256187,0.00018,2]
[398549254,1765823499843,-200.0,0.00018,2]
[398549255,1765823499853,-441.703127,0.00018,2]
[398549256,1765823499863,-334.256187,0.00018,2]
[398549257,1765823499876,-273.238634,0.00018,2]
[398549258,1765823499887,-441.703127,0.00018,2]
[398549259,1765823499896,-334.256187,0.00018,2]
[398549260,1765823499905,-441.703127,0.00018,2]
[398549261,1765823499917,-850.344523,0.00018,2]
[398549262,1765823499927,-850.344523,0.00018,2]
[398549263,1765823499937,-850.344523,0.00018,2]
[398549264,1765823499948,-1278.290336,0.00018,2]
[398549265,1765823499958,-4695.405515,0.00018,2]
[398549266,1765823499969,-163.148289,0.00018,2]
[398549267,1765823499979,-487.005707,0.00018,2]
[398549268,1765823499989,-1278.290336,0.00018,2]
[398549269,1765823499999,-4695.405515,0.00018,2]
[398549270,1765823500008,-487.005707,0.00018,2]
[398549271,1765823500019,-243.123277,0.00018,2]
[398549272,1765823500030,-1278.290336,0.00018,2]
[398549273,1765823500039,-4695.405515,0.00018,2]
[398549274,1765823500049,-487.005707,0.00018,2]
[398549275,1765823500059,-243.123277,0.00018,2]
[398549276,1765823500069,-151.0,0.00018,2]
[398549277,1765823500079,-309.117231,0.00018,2]
[398549278,1765823500089,-151.643396,0.00018,2]
[398549279,1765823500099,-4695.405515,0.00018,2]
[398549280,1765823500110,-487.005707,0.00018,2]
[398549281,1765823500121,-243.123277,0.00018,2]
[398549282,1765823500131,-1278.290336,0.00018,2]
[398549283,1765823500140,-309.117231,0.00018,2]
[398549284,1765823500150,-151.643396,0.00018,2]
[398549285,1765823500162,-243.123277,0.00018,2]
[398549286,1765823500171,-151.643396,0.00018,2]
[398549287,1765823500180,-309.117231,0.00018,2]
[398549288,1765823500190,-217.725049,0.00018,2]
[398549289,1765823500199,-151.643396,0.00018,2]
[398549290,1765823500208,-309.117231,0.00018,2]
[398549291,1765823500217,-217.725049,0.00018,2]
[398549292,1765823500227,-151.0,0.00018,2]
[398549293,1765823500236,-217.725049,0.00018,2]
[398549294,1765823500246,-234.470293,0.00018,2]
[398549295,1765823500255,-217.725049,0.00018,2]
[398549296,1765823500265,-167.308101,0.00018,2]
[398549297,1765823500276,-167.308101,0.00018,2]
[398549298,1765823500285,-167.308101,0.00018,2]
[398549299,1765823500295,-850.344523,0.00018,2]
[398549300,1765823500306,-167.308101,0.00018,2]
[398549301,1765823500316,-778.879033,0.00018,2]
[398549302,1765823500326,-151.0,0.00018,2]
[398549303,1765823500340,-198.955081,0.00018,2]
[398549304,1765823500350,-281.702015,0.00018,2]
[398549305,1765823500359,-778.879033,0.00018,2]
[398549306,1765823500369,-198.955081,0.00018,2]
[398549307,1765823500378,-281.702015,0.00018,2]
[398549308,1765823500389,-778.879033,0.00018,2]
[398549309,1765823500399,-198.955081,0.00018,2]
[398549310,1765823500409,-778.879033,0.00018,2]
[398549311,1765823500418,-281.702015,0.00018,2]
[398549312,1765823500428,-281.702015,0.00018,2]
[398549313,1765823500438,-234.470293,0.00018,2]
[398549314,1765823500448,-234.470293,0.00018,2]
[398549315,1765823500458,-225.38648,0.00018,2]
[398549316,1765823500468,-234.470293,0.00018,2]
[398549317,1765823500477,-225.38648,0.00018,2]
[398549318,1765823500488,-225.38648,0.00018,2]
[398549319,1765823500498,-225.38648,0.00018,2]
[398549320,1765823500508,-337.780426,0.00018,2]
[398549321,1765823500518,-337.780426,0.00018,2]
[398549322,1765823500529,-337.780426,0.00018,2]
[398549323,1765823500539,-337.780426,0.00018,2]
[398549324,1765823500549,-788.35869775,0.00018,2]
[398549325,1765823500560,-151.0,0.00018,2]
[398549326,1765823500570,-151.0,0.00018,2]
[398549327,1765823500580,-151.0,0.00018,2]
[398549328,1765823500590,-198.955081,0.00018,2]
[398549329,1765823500600,-2015.478988,0.00018,2]
[398549330,1765823500610,-2015.478988,0.00018,2]
[398549331,1765823500622,-2015.478988,0.00018,2]
[398549332,1765823500633,-2015.478988,0.00018,2]
[398549333,1765823500643,-839.569379,0.00018,2]
[398549334,1765823500654,-598.033127,0.00018,2]
[398549335,1765823500665,-839.569379,0.00018,2]
[398549336,1765823500674,-210.274683,0.00018,2]
[398549337,1765823500684,-598.033127,0.00018,2]
[398549338,1765823500694,-839.569379,0.00018,2]
[398549339,1765823500704,-152.0,0.00018058,10]
[398549340,1765823500713,-475.0,0.00018082,2]
[398549341,1765823500725,-372.33349867,0.00018082,2]
[398549342,1765823500735,-500.0,0.00018082,2]
[398549343,1765823500745,-500.0,0.00018082,2]
[398549344,1765823500755,-1317.22,0.00018082,2]
[398549345,1765823500765,-658.61,0.00018082,2]
[398549346,1765823500775,-1317.22,0.00018082,2]
[398549347,1765823500786,-658.61,0.00018082,2]
[398549348,1765823500796,-840.53,0.00018082,2]
[398549349,1765823500806,-658.61,0.00018082,2]
[398549350,1765823500817,-961.52,0.00018082,2]
[398549351,1765823500826,-658.61,0.00018082,2]
[398549352,1765823500836,-658.61,0.00018082,2]
[398549353,1765823500846,-658.61,0.00018082,2]
[398549354,1765823500855,-658.61,0.00018082,2]
[398549355,1765823500867,-658.61,0.00018082,2]
[398549356,1765823500878,-1000.0,0.00018082,2]
[398549357,1765823500893,-1106.56,0.00018082,2]
[398549358,1765823500902,-553.28,0.00018082,2]
[398549359,1765823500914,-170.46,0.00018082,2]
[398549360,1765823500924,-984.47,0.00018096,2]
[398549361,1765823500934,-1771.17625499,0.000181,2]
[398549362,1765823500944,-299.32,0.00018118,2]
[398549363,1765823500954,-166.87691119,0.00018141,2]
[398549364,1765823500963,-299.32,0.0001817,2]
[398549365,1765823500974,-199.77,0.00018176,2]
[398549366,1765823500983,-166.66,0.00018204,2]
[398549367,1765823500993,-458.59,0.00018207,2]
[398549368,1765823501002,-543.7,0.00018208,2]
[398549369,1765823501012,-475.0,0.00018219,2]
[398549370,1765823501022,-500.0,0.00018219,2]
[398549371,1765823501032,-500.0,0.00018219,2]
[398549372,1765823501042,-152.0,0.00018284,11]
[398549373,1765823501052,-475.0,0.00018356,2]
[398549374,1765823501062,-500.0,0.00018356,2]
[398549375,1765823501072,-500.0,0.00018356,2]
[398549376,1765823501082,-521.54,0.00018356,2]
[398549377,1765823501092,-984.47,0.0001837,2]
[398549378,1765823501102,-465.0,0.0001843,2]
[398549379,1765823501112,-500.0,0.00018439,2]
[398549380,1765823501122,-500.0,0.00018439,2]
[398549381,1765823501131,-166.89,0.00018474,2]
[398549382,1765823501141,-543.7,0.00018482,2]
[398549383,1765823501151,-475.0,0.00018493,2]
[398549384,1765823501160,-500.0,0.00018493,2]
[398549385,1765823501170,-152.0,0.00018509,12]
[398549386,1765823501179,-640.24385345,0.0001852,2]
[398549387,1765823501189,-465.0,0.0001862,2]
[398549388,1765823501199,-475.0,0.0001863,2]
[398549389,1765823501209,-500.0,0.0001863,2]
[398549390,1765823501219,-984.47,0.00018644,2]
[398549391,1765823501228,-500.0,0.00018657,2]
[398549392,1765823501237,-2000.0,0.00018661,2]
[398549393,1765823501247,-500.0,0.0001867,3]
[398549394,1765823501257,-500.0,0.0001869,2]
[398549395,1765823501267,-500.0,0.0001869,2]
[398549396,1765823501276,-280.25222028,0.00018711,2]
[398549397,1765823501286,-152.0,0.00018735,13]
[398549398,1765823501297,-166.66,0.00018735,2]
[398549399,1765823501307,-543.7,0.00018756,2]
[398549400,1765823501317,-1000.0,0.0001876,2]
[398549401,1765823501327,-475.0,0.00018767,2]
[398549402,1765823501338,-263.42244595,0.00018767,2]
[398549403,1765823501347,-2000.0,0.000188,2]
[398549404,1765823501357,-2000.0,0.000188,2]
[398549405,1765823501368,-2000.0,0.000188,2]
[398549406,1765823501378,-2000.0,0.000188,2]
[398549407,1765823501388,-500.0,0.000188,2]
[398549408,1765823501398,-500.0,0.000188,2]
[398549409,1765823501407,-500.0,0.000188,2]
[398549410,1765823501418,-500.0,0.000188,2]
[398549411,1765823501427,-500.0,0.000188,2]
[398549412,1765823501441,-500.0,0.000188,2]
[398549413,1765823501450,-500.0,0.000188,2]
[398549414,1765823501459,-500.0,0.000188,2]
[398549415,1765823501470,-500.0,0.000188,2]
[398549416,1765823501479,-500.0,0.000188,2]
[398549417,1765823501489,-500.0,0.000188,2]
[398549418,1765823501498,-500.0,0.000188,2]
[398549419,1765823501508,-500.0,0.000188,2]
[398549420,1765823501518,-500.0,0.000188,2]
[398549421,1765823501527,-847.0,0.000188,2]
[398549422,1765823501537,-465.0,0.0001881,2]
[398549423,1765823501547,-166.68,0.00018872,2]
[398549424,1765823501558,-2065.1364524,0.00018895,2]
[398549425,1765823501568,-150.0,0.00018897,2]
[398549426,1765823501577,-500.0,0.000189,2]
[398549427,1765823501586,-500.0,0.000189,2]
[398549428,1765823501596,-500.0,0.000189,2]
[398549429,1765823501606,-500.0,0.000189,2]
[398549430,1765823501615,-500.0,0.000189,2]
[398549431,1765823501624,-500.0,0.000189,2]
[398549432,1765823501634,-500.0,0.000189,2]
[398549433,1765823501643,-500.0,0.000189,2]
[398549434,1765823501652,-500.0,0.000189,2]
[398549435,1765823501662,-500.0,0.000189,2]
[398549436,1765823501671,-500.0,0.000189,2]
[398549437,1765823501681,-500.0,0.000189,2]
[398549438,1765823501691,-500.0,0.000189,2]
[398549439,1765823501702,-500.0,0.000189,2]
[398549440,1765823501712,-500.0,0.000189,2]
[398549441,1765823501722,-500.0,0.000189,2]
[398549442,1765823501732,-500.0,0.000189,2]
[398549443,1765823501742,-500.0,0.000189,2]
[398549444,1765823501752,-500.0,0.000189,2]
[398549445,1765823501763,-500.0,0.000189,2]
[398549446,1765823501772,-500.0,0.000189,2]
[398549447,1765823501783,-500.0,0.000189,2]
[398549448,1765823501793,-500.0,0.000189,2]
[398549449,1765823501804,-500.0,0.000189,2]
[398549450,1765823501814,-500.0,0.000189,2]
[398549451,1765823501826,-500.0,0.000189,2]
[398549452,1765823501835,-500.0,0.000189,2]
[398549453,1765823501844,-194.42830256,0.000189,2]
[398549454,1765823501854,-758.49,0.000189,7]
[398549455,1765823501864,-157.8093672,0.000189,2]
[398549456,1765823501877,-3377.78092348,0.000189,3]
[398549457,1765823501886,-475.0,0.00018904,2]
[398549458,1765823501896,-984.47,0.00018918,2]
[398549459,1765823501907,-500.0,0.00018959,2]
[398549460,1765823501917,-152.0,0.00018961,14]
[398549461,1765823501927,-162.12244894,0.00018973,2]
[398549462,1765823501937,-506.23953734,0.00018973,2]
[398549463,1765823501948,-500.0,0.00018973,2]
[398549464,1765823501957,-500.0,0.00018973,2]
[398549465,1765823501968,-500.0,0.00018973,2]
[398549466,1765823501978,-150.0,0.00018973,2]
[398549467,1765823501988,-500.0,0.00018973,2]
[398549468,1765823501997,-500.0,0.00018973,2]
[398549469,1765823502008,-500.0,0.00018973,2]
[398549470,1765823502018,-500.0,0.00018973,2]
[398549471,1765823502027,-500.0,0.00018973,2]
[398549472,1765823502037,-162.23351129,0.00018973,2]
[398549473,1765823502046,-500.83863982,0.00018973,2]
[398549474,1765823502056,-500.18177596,0.00018973,2]
[398549475,1765823502065,-501.48299685,0.00018973,2]
[398549476,1765823502075,-500.0,0.00018973,2]
[398549477,1765823502084,-1000.20571659,0.00018973,2]
[398549478,1765823502095,-500.0,0.00018973,2]
[398549479,1765823502105,-500.0,0.00018973,2]
[398549480,1765823502117,-500.0,0.00018973,2]
[398549481,1765823502127,-206.44157274,0.00018973,2]
[398549482,1765823502136,-500.0,0.00018973,2]
[398549483,1765823502146,-500.0,0.00018973,2]
[398549484,1765823502155,-500.0,0.00018973,2]
[398549485,1765823502164,-500.0,0.00018973,2]
[398549486,1765823502174,-555.43018696,0.00018973,2]
[398549487,1765823502183,-330.42255021,0.00018973,2]
[398549488,1765823502193,-500.0,0.00018973,2]
[398549489,1765823502202,-500.0,0.00018973,2]
[398549490,1765823502213,-334.27240777,0.00018973,2]
[398549491,1765823502224,-500.0,0.00018973,2]
[398549492,1765823502234,-500.0,0.00018973,2]
[398549493,1765823502244,-501.4576777,0.00018973,2]
[398549494,1765823502254,-500.0,0.00018973,2]
[398549495,1765823502263,-500.0,0.00018973,2]
[398549496,1765823502272,-500.0,0.00018973,2]
[398549497,1765823502282,-400.74376215,0.00018973,2]
[398549498,1765823502291,-509.04453803,0.00018973,2]
[398549499,1765823502301,-500.0,0.00018973,2]
[398549500,1765823502310,-500.0,0.00018973,2]
[398549501,1765823502320,-500.0,0.00018973,2]
[398549502,1765823502330,-500.0,0.00018973,2]
[398549503,1765823502340,-220.08691994,0.00018973,2]
[398549504,1765823502351,-161.48542823,0.00018973,2]
[398549505,1765823502361,-161.9068601,0.00018973,2]
[398549506,1765823502371,-500.0,0.00018973,2]
[398549507,1765823502380,-500.0,0.00018973,2]
[398549508,1765823502390,-500.0,0.00018973,2]
[398549509,1765823502399,-500.0,0.00018973,2]
[398549510,1765823502409,-500.0,0.00018973,2]
[398549511,1765823502419,-500.0,0.00018973,2]
[398549512,1765823502429,-500.0,0.00018973,2]
[398549513,1765823502438,-160.44286532,0.00018973,2]
[398549514,1765823502447,-518.33993924,0.00018973,2]
[398549515,1765823502457,-500.0,0.00018973,2]
[398549516,1765823502468,-500.0,0.00018973,2]
[398549517,1765823502478,-500.36886622,0.00018973,2]
[398549518,1765823502488,-156.41020284,0.00018973,2]
[398549519,1765823502498,-500.0,0.00018973,2]
[398549520,1765823502507,-500.0,0.00018973,2]
[398549521,1765823502517,-159.96663374,0.00018973,2]
[398549522,1765823502527,-500.0,0.00018973,2]
[398549523,1765823502536,-500.0,0.00018973,2]
[398549524,1765823502547,-500.0,0.00018973,2]
[398549525,1765823502556,-500.0,0.00018973,2]
[398549526,1765823502566,-500.0,0.00018973,2]
[398549527,1765823502577,-282.36091791,0.00018973,2]
[398549528,1765823502587,-160.9490228,0.00018973,2]
[398549529,1765823502596,-500.0,0.00018973,2]
[398549530,1765823502605,-500.3035834,0.00018973,2]
[398549531,1765823502616,-500.0,0.00018973,2]
[398549532,1765823502625,-328.90720081,0.00018973,2]
[398549533,1765823502635,-207.31663345,0.00018973,2]
[398549534,1765823502644,-529.55761346,0.00018973,2]
[398549535,1765823502654,-505.79891275,0.00018973,2]
[398549536,1765823502663,-500.0,0.00018973,2]
[398549537,1765823502673,-500.0,0.00018973,2]
[398549538,1765823502682,-500.0,0.00018973,2]
[398549539,1765823502693,-500.0,0.00018973,2]
[398549540,1765823502703,-500.0,0.00018973,2]
[398549541,1765823502713,-500.0,0.00018973,2]
[398549542,1765823502723,-374.08576034,0.00018973,2]
[398549543,1765823502732,-168.43051183,0.00018973,2]
[398549544,1765823502742,-344.37083674,0.00018973,2]
[398549545,1765823502752,-500.0,0.00018973,2]
[398549546,1765823502762,-166.7753196,0.00018973,2]
[398549547,1765823502772,-159.3021959,0.00018973,2]
[398549548,1765823502782,-500.0,0.00018973,2]
[398549549,1765823502792,-522.5837689,0.00018973,2]
[398549550,1765823502803,-500.0,0.00018973,2]
[398549551,1765823502813,-165.41844383,0.00018973,2]
[398549552,1765823502823,-164.6917699,0.00018973,2]
[398549553,1765823502833,-500.0,0.00018973,2]
[398549554,1765823502843,-500.0,0.00018973,2]
[398549555,1765823502853,-500.0,0.00018973,2]
[398549556,1765823502868,-840.0,0.0001899,2]
[398549557,1765823502879,-500.0,0.00018997,2]
[398549558,1765823502890,-151.0,0.00018997,2]
[398549559,1765823502900,-3015.43,0.00018998,2]
[398549560,1765823502910,-500.0,0.00018999,2]
[398549561,1765823502921,-500.0,0.00018999,2]
[398549562,1765823502931,-500.0,0.00018999,2]
[398549563,1765823502943,-500.0,0.00018999,2]
[398549564,1765823502953,-500.0,0.00018999,2]
[398549565,1765823502963,-500.0,0.00018999,2]
[398549566,1765823502974,-307.71551057,0.00018999,2]
[398549567,1765823502985,-500.0,0.00018999,2]
[398549568,1765823502996,-500.0,0.00018999,2]
[398549569,1765823503006,-500.0,0.00018999,2]
[398549570,1765823503016,-500.0,0.00018999,2]
[398549571,1765823503324,-500.0,0.00018999,2]
[398549572,1765823503380,-500.0,0.00018999,2]
[398549573,1765823503389,-500.0,0.00018999,2]
[398549574,1765823503402,-500.0,0.00018999,2]
[398549575,1765823503411,-500.0,0.00018999,2]
[398549576,1765823503421,-500.0,0.00018999,2]
[398549577,1765823503431,-500.0,0.00018999,2]
[398549578,1765823503440,-594.44,0.00018999,2]
[398549579,1765823503450,-500.0,0.00018999,2]
[398549580,1765823503459,-500.0,0.00018999,2]
[398549581,1765823503469,-500.0,0.00018999,2]
[398549582,1765823503479,-500.0,0.00018999,2]
[398549583,1765823503489,-500.0,0.00018999,2]
[398549584,1765823503498,-500.0,0.00018999,2]
[398549585,1765823503508,-444.65632683,0.00018999,2]
[398549586,1765823503518,-500.0,0.00018999,2]
[398549587,1765823503528,-500.0,0.00018999,2]
[398549588,1765823503538,-500.0,0.00018999,2]
[398549589,1765823503548,-500.0,0.00018999,2]
[398549590,1765823503559,-500.0,0.00018999,2]
[398549591,1765823503568,-500.0,0.00018999,2]
[398549592,1765823503578,-500.0,0.00018999,2]
[398549593,1765823503587,-500.0,0.00018999,2]
[398549594,1765823503597,-500.0,0.00018999,2]
[398549595,1765823503607,-500.0,0.00018999,2]
[398549596,1765823503616,-284.32524833,0.00018999,2]
[398549597,1765823503627,-150.0,0.00018999,2]
[398549598,1765823503639,-2058.30906484,0.00019,7]
[398549599,1765823503650,-6861.03021613,0.00019,2]
[398549600,1765823503661,-4802.72115129,0.00019,4]
[398549601,1765823503672,-21751382.6368188,0.00019,2]
[398549602,1765823503682,-601214.52895433,0.00019,2]
[398549603,1765823503693,-5144.03482086,0.00019,2]
[398549604,1765823503702,-6974367.18016037,0.00019,2]
[398549608,1765823506706,-428.83413143,0.00018,2]
[398549609,1765823507141,-598.033127,0.00017,2]
[398549610,1765823507151,-561.33698629,0.00017,2]
[398549611,1765823507173,-36.69614071,0.00017,2]
[398549612,1765823507182,-255.059584,0.00017,2]
[398549613,1765823507191,-598.033127,0.00017,2]
[398549614,1765823507202,-255.059584,0.00017,2]
[398549615,1765823507213,-255.059584,0.00017,2]
[398549616,1765823507222,-357.371631,0.00017,2]
[398549617,1765823507231,-357.371631,0.00017,2]
[398549618,1765823507240,-357.371631,0.00017,2]
[398549619,1765823507250,-255.059584,0.00017,2]
[398549620,1765823507260,-169.19899557,0.00018,2]
[398549621,1765823507271,-839.569379,0.00018,2]
[398549622,1765823507280,-255.059584,0.00018,2]
[398549623,1765823507290,-598.033127,0.00018,2]
[398549624,1765823507300,-255.059584,0.00018,2]
[398549625,1765823507310,-357.371631,0.00018,2]
[398549626,1765823507319,-1450.78520272,0.00019,2]
[398549627,1765823507331,-10264.48088164,0.00019,2]
[398549628,1765823507342,-29333.19056043,0.00019,2]
[398549629,1765823507353,-2074.74606667,0.00019,2]
[398549630,1765823507366,-4454.46325526,0.00019,2]
[398549631,1765823507379,-1071.57667277,0.00019,2]
[398549632,1765823507394,-1004.86603967,0.00019,2]
[398549633,1765823507404,-16382.54989279,0.00019,2]
[398549634,1765823507415,-503.26943875,0.00019,2]
[398549640,1765823573431,2126.0702,0.00015675,2]
[398549698,1765823812259,-391.70233138,0.00015751,2]
[398549702,1765823862130,200.0,0.00015612,2]
[398549706,1765824008754,-281.0,0.00015751,2]
[398549707,1765824008788,-503.12384435,0.00015751,2]
[398549722,1765824189120,5524.0,0.000157,5]
[398549768,1765824320052,1864.4,0.00015538,2]
[398549771,1765824350532,150.39,0.0001557,2]
[398549798,1765824632170,-105.17382427,0.00015751,2]
[398549799,1765824632182,-151.4,0.00015816,2]
[398549800,1765824632193,-200.0,0.0001595,2]
[398549802,1765824632205,-166.66,0.00015984,2]
[398549803,1765824632218,-242.77,0.00016128,2]
[398549804,1765824632231,-296.11010707,0.00016129,2]
[398549805,1765824632242,-308.0,0.00016137,2]
[398549806,1765824632254,-300.0,0.00016137,2]
[398549807,1765824632266,-1146.88606866,0.00016137,2]
[398549808,1765824632294,-53.11393134,0.00016137,2]
[398549809,1765824632307,-292.11795566,0.00016138,2]
[398549810,1765824632323,-4246.59667446,0.00016138,2]
[398549811,1765824632338,-1529.05325144,0.00016138,2]
[398549812,1765824632354,-324.98920754,0.00016138,2]
[398549813,1765824632413,-841.29579113,0.00016138,2]
[398549814,1765824632427,-1570.60238173,0.00016138,2]
[398549815,1765824632441,-2911.19514556,0.00016138,2]
[398549816,1765824632455,-806.80112719,0.00016138,2]
[398549817,1765824632470,-21.45255746,0.00016138,2]
[398549818,1765824632481,-714.39820309,0.00016138,2]
[398549819,1765824632493,-281.4445,0.00016138,2]
[398549821,1765824632505,-225.52624356,0.00016138,2]
[398549871,1765824634502,-201.60775644,0.00016138,2]
[398549872,1765824634539,-6680.3459,0.00016138,2]
[398549873,1765824634581,-4509.99655964,0.00016138,2]
[398549874,1765824634641,-341472.53569712,0.00016138,2]
[398549875,1765824634674,-21021.56470654,0.00016138,2]
[398549877,1765824638436,-90348.5886691,0.00016138,2]
[398549878,1765824638456,-52618.30705237,0.00016138,2]
[398549879,1765824638476,-31688.91161523,0.00016138,2]